bitfinex/quotes_BTCUSD_20250602
["timestamp","ask_amount","ask_price","bid_price","bid_amount"]
[1748887615547,0.03828271,104480.0,104470.0,0.24472971]
[1748887615699,0.2392781,104480.0,104470.0,0.24472989]
[1748887615902,0.2684908,104480.0,104470.0,0.23930146]
[1748887616169,0.06749541,104480.0,104470.0,0.23930082]
[1748887616309,0.06849541,104480.0,104470.0,0.24430082]
[1748887616699,0.2599196,104480.0,104470.0,0.005]
[1748887616905,0.37702309,104480.0,104470.0,0.011]
[1748887617130,0.37802309,104480.0,104470.0,0.011]
[1748887617743,0.37702309,104480.0,104470.0,0.005]
[1748887617968,0.35763296,104480.0,104470.0,0.01457212]
[1748887618181,0.65323296,104480.0,104470.0,0.005]
[1748887618383,0.68098196,104480.0,104460.0,0.25510703]
[1748887618614,0.02871481,104470.0,104460.0,0.25510703]
[1748887619498,0.06384635,104470.0,104460.0,0.25510703]
[1748887619699,0.02871481,104470.0,104460.0,0.25610703]
[1748887619930,0.03828684,104470.0,104460.0,0.25525207]
[1748887620343,0.04885869,104470.0,104460.0,0.25167995]
[1748887621417,0.001,104470.0,104460.0,0.31292264]
[1748887621619,0.002,104470.0,104460.0,0.31692264]
[1748887621817,0.002,104470.0,104460.0,0.61256264]
[1748887622020,0.002,104470.0,104460.0,0.79981694]
[1748887623755,0.002,104470.0,104460.0,0.75387425]
[1748887624179,0.002,104470.0,104460.0,1.09387425]
[1748887624381,0.002,104470.0,104460.0,1.49387425]
[1748887624995,0.002,104470.0,104460.0,1.09387425]
[1748887625444,0.002,104470.0,104460.0,1.49387425]
[1748887625686,0.002,104470.0,104460.0,1.58638547]
[1748887627838,0.002,104470.0,104460.0,1.49387425]
[1748887630478,0.002,104470.0,104460.0,2.00855773]
[1748887630730,0.002,104470.0,104460.0,2.35315773]
[1748887631565,0.001,104470.0,104460.0,2.34915773]
[1748887631772,0.002,104470.0,104460.0,2.35315773]
[1748887631976,0.001,104470.0,104460.0,2.43966895]
[1748887632392,0.002,104470.0,104460.0,2.44666895]
[1748887635899,0.002,104470.0,104460.0,1.94652632]
[1748887636134,0.002,104470.0,104460.0,2.44666895]
[1748887636895,0.002,104470.0,104460.0,1.54494547]
[1748887637103,0.002,104470.0,104460.0,1.93190547]
[1748887638710,0.002,104470.0,104460.0,2.4320481]
[1748887639133,0.002,104470.0,104460.0,2.44658895]
[1748887640184,0.002,104470.0,104460.0,1.93190547]
[1748887641041,0.002,104470.0,104460.0,0.79919425]
[1748887641253,0.002,104470.0,104460.0,0.45919425]
[1748887641707,0.002,104470.0,104460.0,0.35293425]
[1748887642586,0.002,104470.0,104460.0,0.24087995]
[1748887644611,0.0115713,104470.0,104460.0,0.24087995]
[1748887644826,0.002,104470.0,104460.0,0.25897302]
[1748887645576,0.002,104470.0,104460.0,0.24087995]
[1748887645984,0.0115713,104470.0,104460.0,0.24087995]
[1748887646638,0.03414278,104470.0,104460.0,0.24087995]
[1748887646848,0.04371435,104470.0,104460.0,0.24087995]
[1748887647053,0.03414278,104470.0,104460.0,0.24087995]
[1748887647263,0.03314269,104470.0,104460.0,0.23687995]
[1748887647482,0.06185759,104470.0,104460.0,0.23687995]
[1748887647690,0.06285759,104470.0,104460.0,0.24187995]
[1748887648113,0.2523001,104470.0,104460.0,0.22030755]
[1748887648326,0.26915776,104470.0,104460.0,0.21473488]
[1748887648547,0.26915776,104470.0,104460.0,0.22930737]
[1748887648548,0.04371554,104470.0,104460.0,0.22930737]
[1748887648759,0.04371536,104470.0,104460.0,0.23887977]
[1748887650697,0.03414342,104470.0,104460.0,0.23887977]
[1748887651105,0.002,104470.0,104460.0,0.23887977]
[1748887651328,0.01157139,104470.0,104460.0,0.25447977]
[1748887651666,0.03071462,104470.0,104460.0,0.23887977]
[1748887652007,0.03071453,104470.0,104460.0,0.23887977]
[1748887653086,0.04028628,104470.0,104460.0,0.23887977]
[1748887653774,0.03071453,104470.0,104460.0,0.23887977]
[1748887654412,0.05328647,104470.0,104460.0,0.23887977]
[1748887654633,0.04371453,104470.0,104460.0,0.23887977]
[1748887654848,0.03414287,104470.0,104460.0,0.23887977]
[1748887655065,0.02457139,104470.0,104460.0,0.23887977]
[1748887655285,0.015,104470.0,104460.0,0.23887977]
[1748887655501,0.03414305,104470.0,104460.0,0.20058927]
[1748887655704,0.03414305,104470.0,104460.0,0.22930729]
[1748887655910,0.04371499,104470.0,104460.0,0.22930729]
[1748887656140,0.01157139,104470.0,104460.0,0.22930729]
[1748887656349,0.03071462,104470.0,104460.0,0.24520729]
[1748887656562,0.002,104470.0,104460.0,0.29075736]
[1748887656784,0.002,104470.0,104460.0,0.30575736]
[1748887660066,0.0115713,104470.0,104460.0,0.30575736]
[1748887661189,0.04362575,104480.0,104470.0,0.21058629]
[1748887661388,0.05662575,104480.0,104470.0,0.21058629]
[1748887661606,0.06619659,104480.0,104470.0,0.22015786]
[1748887662015,0.0321414,104480.0,104470.0,0.22015786]
[1748887662222,0.2331367,104480.0,104470.0,0.22972934]
[1748887662424,0.2401367,104480.0,104470.0,0.26733695]
[1748887663236,0.2209953,104480.0,104470.0,0.20201454]
[1748887663440,0.2269953,104480.0,104470.0,0.20301454]
[1748887663571,0.2269953,104480.0,104470.0,0.21258648]
[1748887664008,0.31327849,104480.0,104470.0,0.002]
[1748887664349,0.31327849,104480.0,104470.0,0.20301454]
[1748887664541,0.31327849,104480.0,104470.0,0.002]
[1748887669855,0.31327849,104480.0,104470.0,0.19344251]
[1748887670078,0.31327849,104480.0,104470.0,0.20301463]
[1748887670495,0.31327849,104480.0,104470.0,0.23673184]
[1748887670697,0.31327849,104480.0,104470.0,0.04528933]
[1748887670928,0.30027849,104480.0,104470.0,0.23673184]
[1748887671128,0.30027849,104480.0,104470.0,0.04528933]
[1748887671551,0.1088543,104480.0,104470.0,0.27760378]
[1748887671753,0.03214104,104480.0,104470.0,0.29674701]
[1748887671965,0.013,104480.0,104470.0,0.29674701]
[1748887676283,0.013,104480.0,104470.0,0.39260131]
[1748887680259,0.01274637,104480.0,104470.0,0.39260131]
[1748887681526,0.01274637,104480.0,104470.0,0.40175239]
[1748887683381,0.01274637,104480.0,104470.0,0.74175239]
[1748887683585,0.01274637,104480.0,104470.0,1.12859239]
[1748887683786,0.01274637,104480.0,104470.0,1.14313324]
[1748887684665,0.01274637,104480.0,104470.0,1.14312535]
[1748887685984,0.01274637,104480.0,104470.0,1.1285445]
[1748887688476,0.01274637,104480.0,104470.0,1.12853973]
[1748887694030,0.01274637,104480.0,104470.0,1.11940131]
[1748887694330,0.01274637,104480.0,104470.0,1.12853713]
[1748887694543,0.01274637,104480.0,104470.0,1.11940131]
[1748887694874,0.01274637,104480.0,104470.0,1.12853802]
[1748887695901,0.01274637,104480.0,104470.0,1.6432215]
[1748887696164,0.01274637,104480.0,104470.0,1.63408479]
[1748887696586,0.01274637,104480.0,104470.0,1.64322287]
[1748887697120,0.01274637,104480.0,104470.0,2.04321994]
[1748887697524,0.01274637,104480.0,104470.0,2.04221994]
[1748887697525,0.006,104480.0,104470.0,2.04221994]
[1748887697708,0.006,104480.0,104470.0,2.04821994]
[1748887697908,0.007,104480.0,104470.0,2.04821994]
[1748887698356,0.006,104480.0,104470.0,2.04221994]
[1748887698755,0.03871718,104510.0,104500.0,0.25139457]
[1748887698968,0.72166844,104530.0,104520.0,0.22005246]
[1748887699137,0.81752274,104530.0,104520.0,0.21048556]
[1748887699657,0.83665197,104530.0,104520.0,0.22005264]
[1748887699828,0.83665197,104530.0,104520.0,0.22961963]
[1748887700029,0.85513599,104530.0,104520.0,0.23061963]
[1748887700248,0.85513599,104530.0,104520.0,0.27377529]
[1748887700716,0.85513599,104530.0,104520.0,0.2642083]
[1748887700915,0.8551359,104530.0,104520.0,0.2081879]
[1748887701298,0.88370253,104530.0,104520.0,0.22832253]
[1748887701528,0.87413664,104530.0,104520.0,0.22832253]
[1748887701727,0.90263145,104530.0,104520.0,0.20918846]
[1748887702622,0.71129817,104530.0,104520.0,0.21875536]
[1748887702797,0.72086471,104530.0,104520.0,0.26072459]
[1748887703386,0.91219734,104530.0,104520.0,0.26072459]
[1748887703603,0.92176397,104530.0,104520.0,0.26072459]
[1748887703783,0.63513148,104530.0,104520.0,0.26072459]
[1748887703982,0.64469792,104530.0,104520.0,0.26072459]
[1748887704201,0.11779905,104530.0,104520.0,0.26072459]
[1748887704406,0.12393093,104530.0,104520.0,0.26072459]
[1748887705075,0.13349719,104530.0,104520.0,0.26072459]
[1748887705250,0.13349719,104530.0,104520.0,0.21875536]
[1748887706978,0.14306363,104530.0,104520.0,0.21875536]
[1748887707180,0.14649719,104530.0,104520.0,0.21875536]
[1748887707935,0.13349719,104530.0,104520.0,0.21875536]
[1748887708340,0.13349719,104530.0,104520.0,0.23445536]
[1748887708543,0.13349719,104530.0,104520.0,0.27492778]
[1748887708962,0.14306363,104530.0,104520.0,0.23445536]
[1748887709167,0.14306363,104530.0,104520.0,0.21875536]
[1748887709792,0.13349719,104530.0,104520.0,0.21875536]
[1748887709996,0.12393093,104530.0,104520.0,0.21875536]
[1748887710198,0.12393093,104530.0,104520.0,0.23385536]
[1748887710432,0.10479905,104530.0,104520.0,0.23385536]
[1748887710642,0.10479905,104530.0,104520.0,0.25045536]
[1748887710861,0.075545,104530.0,104520.0,0.25045536]
[1748887713705,0.0851108,104530.0,104520.0,0.25045536]
[1748887714078,0.075545,104530.0,104520.0,0.25045536]
[1748887714281,0.075545,104530.0,104520.0,0.29559459]
[1748887715206,0.08511089,104530.0,104520.0,0.29559459]
[1748887715633,0.075545,104530.0,104520.0,0.29559459]
[1748887716027,0.0851108,104530.0,104520.0,0.29559459]
[1748887716227,0.27644343,104530.0,104520.0,0.21472128]
[1748887716426,0.78142473,104530.0,104520.0,0.002]
[1748887716678,0.84746525,104530.0,104520.0,0.002]
[1748887717031,0.81372405,104530.0,104520.0,0.002]
[1748887718445,0.81373838,104530.0,104520.0,0.002]
[1748887719312,0.84247438,104530.0,104520.0,0.002]
[1748887720214,0.65532257,104530.0,104520.0,0.002]
[1748887720417,0.68910688,104530.0,104520.0,0.002]
[1748887722155,0.68910688,104530.0,104520.0,0.19335093]
[1748887722368,0.80074482,104530.0,104520.0,0.25478419]
[1748887722572,0.73461573,104530.0,104520.0,0.24521701]
[1748887723464,0.73461573,104530.0,104520.0,0.25478437]
[1748887723673,0.77310492,104530.0,104520.0,0.25478437]
[1748887724275,0.76010492,104530.0,104520.0,0.22205301]
[1748887724449,0.76010492,104530.0,104520.0,0.21248574]
[1748887724856,0.82624494,104530.0,104520.0,0.21248574]
[1748887725264,0.83924494,104530.0,104520.0,0.19335093]
[1748887725503,0.82967868,104530.0,104520.0,0.19335093]
[1748887725886,0.82011214,104530.0,104520.0,0.20291847]
[1748887726096,0.82013587,104530.0,104520.0,0.002]
[1748887730346,0.20091847,104520.0,104510.0,0.23546807]
[1748887730541,0.26710812,104520.0,104510.0,0.23546807]
[1748887730911,0.08532428,104520.0,104510.0,0.24503589]
[1748887731122,0.28624239,104520.0,104510.0,0.23546807]
[1748887731317,0.29580947,104520.0,104510.0,0.23546807]
[1748887731529,0.104459,104520.0,104510.0,0.23546807]
[1748887731667,0.34111338,104520.0,104510.0,0.22690016]
[1748887731895,0.14919491,104520.0,104510.0,0.29259981]
[1748887732095,0.10132373,104520.0,104510.0,0.30769981]
[1748887732492,0.10132363,104520.0,104510.0,0.30769981]
[1748887732782,0.1108909,104520.0,104510.0,0.30769981]
[1748887733559,0.12045826,104520.0,104510.0,0.26213589]
[1748887733767,0.05426861,104520.0,104510.0,0.26213589]
[1748887733909,0.07854357,104520.0,104510.0,0.26213589]
[1748887734117,0.11092433,104520.0,104510.0,0.26213589]
[1748887734584,0.12049169,104520.0,104510.0,0.26213589]
[1748887734744,0.11092433,104520.0,104510.0,0.26213589]
[1748887735555,0.10135706,104520.0,104510.0,0.26213589]
[1748887735755,0.31184271,104520.0,104510.0,0.26213589]
[1748887735995,0.12049178,104520.0,104510.0,0.24300016]
[1748887736205,0.31184271,104520.0,104510.0,0.24300016]
[1748887736607,0.14922678,104520.0,104510.0,0.25256798]
[1748887736865,0.14922669,104520.0,104510.0,0.25256798]
[1748887737472,0.34057817,104520.0,104510.0,0.23343216]
[1748887737683,0.13011143,104520.0,104510.0,0.25256798]
[1748887737882,0.13011143,104520.0,104510.0,0.30004553]
[1748887738163,0.13967879,104520.0,104510.0,0.30004553]
[1748887738724,0.10582652,104520.0,104510.0,0.25256798]
[1748887738965,0.1301138,104520.0,104510.0,0.25256798]
[1748887739166,0.13968107,104520.0,104510.0,0.25256798]
[1748887740191,0.14924843,104520.0,104510.0,0.25256798]
[1748887740486,0.11539379,104520.0,104510.0,0.25256798]
[1748887740707,0.10582643,104520.0,104510.0,0.25256798]
[1748887740890,0.10582643,104520.0,104510.0,0.28593754]
[1748887741108,0.30674472,104520.0,104510.0,0.25256798]
[1748887741310,0.12496124,104520.0,104510.0,0.25256798]
[1748887741623,0.11539849,104520.0,104510.0,0.25256798]
[1748887741893,0.30674942,104520.0,104510.0,0.25256798]
[1748887742133,0.12496594,104520.0,104510.0,0.25256798]
[1748887743068,0.11539849,104520.0,104510.0,0.25256798]
[1748887743190,0.11539849,104520.0,104510.0,0.30004553]
[1748887744003,0.08666349,104520.0,104510.0,0.25256798]
[1748887744562,0.1205193,104520.0,104510.0,0.25256798]
[1748887744784,0.32143768,104520.0,104510.0,0.25256798]
[1748887745121,0.32143841,104520.0,104510.0,0.25256798]
[1748887745326,0.13008748,104520.0,104510.0,0.25256798]
[1748887745733,0.13008497,104520.0,104510.0,0.25256798]
[1748887745941,0.3214359,104520.0,104510.0,0.25256798]
[1748887746390,0.11094998,104520.0,104510.0,0.25256798]
[1748887746612,0.30230091,104520.0,104510.0,0.22386389]
[1748887746823,0.6947332,104520.0,104510.0,0.0174]
[1748887747033,0.7234712,104520.0,104510.0,0.002]
[1748887747211,0.7234712,104520.0,104510.0,0.0173]
[1748887749660,0.72347003,104520.0,104510.0,0.0173]
[1748887750478,0.21050552,104510.0,104500.0,0.27628265]
[1748887750686,0.2767508,104510.0,104500.0,0.27628265]
[1748887750870,0.08538128,104510.0,104500.0,0.27628265]
[1748887751120,0.29588735,104510.0,104500.0,0.27628265]
[1748887751322,0.30545544,104510.0,104500.0,0.26671392]
[1748887751526,0.30545544,104510.0,104500.0,0.2571451]
[1748887751729,0.29688762,104510.0,104500.0,0.2571451]
[1748887751867,0.29688762,104510.0,104500.0,0.26671392]
[1748887752563,0.29688762,104510.0,104500.0,0.24757618]
[1748887752760,0.28731953,104510.0,104500.0,0.25714519]
[1748887753010,0.27775135,104510.0,104500.0,0.25714519]
[1748887753367,0.26818298,104510.0,104500.0,0.26267618]
[1748887753777,0.26818298,104510.0,104500.0,0.27224519]
[1748887753981,0.27775116,104510.0,104500.0,0.28181392]
[1748887754295,0.27775116,104510.0,104500.0,0.27224519]
[1748887754500,0.27775116,104510.0,104500.0,0.28181411]
[1748887755027,0.27775116,104510.0,104500.0,0.27224519]
[1748887755230,0.27775116,104510.0,104500.0,0.26267618]
[1748887755736,0.26818298,104510.0,104500.0,0.26267618]
[1748887757193,0.2019377,104510.0,104500.0,0.2722451]
[1748887757409,0.26816919,104510.0,104500.0,0.2722451]
[1748887757619,0.09594319,104510.0,104500.0,0.32913422]
[1748887757824,0.2968808,104510.0,104500.0,0.32913422]
[1748887758209,0.30644926,104510.0,104500.0,0.32913422]
[1748887758412,0.30644926,104510.0,104500.0,0.28181383]
[1748887758791,0.06723883,104510.0,104500.0,0.28181383]
[1748887758994,0.08637428,104510.0,104500.0,0.28181383]
[1748887759493,0.08638345,104510.0,104500.0,0.28181383]
[1748887759712,0.08638335,104510.0,104500.0,0.28181383]
[1748887759909,0.067248,104510.0,104500.0,0.35961909]
[1748887760146,0.001,104510.0,104500.0,0.35961909]
[1748887761517,0.03486649,104510.0,104500.0,0.35961909]
[1748887762996,0.06727945,104510.0,104500.0,0.35961909]
[1748887765398,0.06729693,104510.0,104500.0,0.35961909]
[1748887772569,0.06729693,104510.0,104500.0,0.45547339]
[1748887772761,0.001,104510.0,104500.0,0.45547339]
[1748887773562,0.56680551,104510.0,104500.0,0.02125144]
[1748887773765,0.20095674,104500.0,104490.0,0.0313]
[1748887773970,0.02870921,104490.0,104480.0,0.25140432]
[1748887774170,0.0625888,104490.0,104480.0,0.23226264]
[1748887774378,0.07585912,104490.0,104480.0,0.26097479]
[1748887774589,0.27683602,104490.0,104480.0,0.0313]
[1748887775236,0.27683602,104490.0,104480.0,0.24329521]
[1748887775237,0.27783602,104490.0,104480.0,0.24329521]
[1748887775439,0.27783602,104490.0,104480.0,0.04278402]
[1748887775655,0.27883602,104490.0,104480.0,0.05378402]
[1748887775859,0.27883602,104490.0,104480.0,0.25477932]
[1748887776070,0.27883602,104490.0,104480.0,0.05378402]
[1748887776698,0.21254636,104490.0,104480.0,0.05378402]
[1748887776906,0.27877869,104490.0,104480.0,0.22920821]
[1748887777312,0.27877869,104490.0,104480.0,0.03778402]
[1748887777517,0.38425978,104490.0,104480.0,0.01148402]
[1748887777731,0.38425978,104490.0,104450.0,0.0326]
[1748887777732,0.20104242,104460.0,104450.0,0.0326]
[1748887777938,0.03829766,104440.0,104430.0,0.22976383]
[1748887778141,0.03829766,104440.0,104430.0,0.28737014]
[1748887778142,0.2202213,104440.0,104430.0,0.28737014]
[1748887778350,0.2202213,104440.0,104430.0,0.03304504]
[1748887778558,0.2202213,104440.0,104430.0,0.23413648]
[1748887778767,0.2202213,104440.0,104430.0,0.03304504]
[1748887778768,0.24381382,104440.0,104430.0,0.03304504]
[1748887778983,0.29072826,104440.0,104430.0,0.20123667]
[1748887779191,0.05231576,104440.0,104430.0,0.22038788]
[1748887779405,0.07146541,104440.0,104430.0,0.25238788]
[1748887779614,0.03316684,104440.0,104430.0,0.27153827]
[1748887779846,0.03829398,104450.0,104440.0,0.22022102]
[1748887780052,0.23934701,104450.0,104440.0,0.24264679]
[1748887780258,0.22977388,104450.0,104440.0,0.23307229]
[1748887780459,0.22020048,104450.0,104440.0,0.21064689]
[1748887780674,0.20105303,104450.0,104440.0,0.20107229]
[1748887780884,0.20105303,104450.0,104440.0,0.21064698]
[1748887781118,0.22936824,104450.0,104440.0,0.21064698]
[1748887781330,0.22936824,104450.0,104440.0,0.22022158]
[1748887781578,0.00957432,104440.0,104430.0,0.22731145]
[1748887781779,0.01914855,104440.0,104430.0,0.26146239]
[1748887782750,0.02872305,104440.0,104430.0,0.26146239]
[1748887783032,0.22122056,104440.0,104430.0,0.245312]
[1748887783237,0.24037003,104440.0,104430.0,0.26446248]
[1748887783442,0.10531568,104440.0,104430.0,0.26446248]
[1748887783621,0.1063155,104440.0,104430.0,0.27446248]
[1748887784046,0.04987234,104440.0,104430.0,0.27446248]
[1748887785415,0.002,104440.0,104430.0,0.27446248]
[1748887785625,0.01157423,104440.0,104430.0,0.27446248]
[1748887785859,0.002,104440.0,104430.0,0.37031678]
[1748887789133,0.01157405,104440.0,104430.0,0.37031678]
[1748887789329,0.002,104440.0,104430.0,0.37031678]
[1748887794066,0.002,104440.0,104430.0,0.462828]
[1748887795002,0.002,104440.0,104430.0,0.802828]
[1748887796047,0.002,104440.0,104430.0,0.81736885]
[1748887796258,0.002,104440.0,104430.0,1.099468]
[1748887796472,0.002,104440.0,104430.0,1.95887148]
[1748887796684,0.03369935,104490.0,104430.0,1.95887148]
[1748887796685,0.57467551,104490.0,104480.0,0.21056632]
[1748887796895,0.56510595,104490.0,104480.0,0.24469894]
[1748887797073,0.60428351,104490.0,104480.0,0.27341164]
[1748887797289,0.60428342,104490.0,104480.0,0.26384089]
[1748887797479,0.59471359,104490.0,104480.0,0.24469894]
[1748887797681,0.00957093,104480.0,104470.0,0.23604054]
[1748887797885,0.22970818,104480.0,104470.0,0.22014146]
[1748887798086,0.22970818,104480.0,104470.0,0.2297134]
[1748887798706,0.02871279,104480.0,104470.0,0.23928488]
[1748887798916,0.03271279,104480.0,104470.0,0.29487023]
[1748887799088,0.0422839,104480.0,104470.0,0.29487023]
[1748887799411,0.0518551,104480.0,104470.0,0.28529875]
[1748887799649,0.23370845,104480.0,104470.0,0.2297134]
[1748887800070,0.22413752,104480.0,104470.0,0.2297134]
[1748887800480,0.25244899,104480.0,104470.0,0.22014174]
[1748887800686,0.004,104480.0,104470.0,0.27088488]
[1748887800893,0.0231414,104480.0,104470.0,0.32634023]
[1748887801308,0.03271187,104480.0,104470.0,0.32634023]
[1748887801709,0.04228289,104480.0,104470.0,0.32634023]
[1748887802115,0.04228289,104480.0,104470.0,0.27088488]
[1748887802343,0.03271178,104480.0,104470.0,0.27088488]
[1748887803320,0.22413597,104480.0,104470.0,0.2613134]
[1748887803524,0.04228271,104480.0,104470.0,0.2613134]
[1748887803741,0.05185373,104480.0,104470.0,0.27088488]
[1748887803956,0.04228271,104480.0,104470.0,0.27088488]
[1748887804189,0.02314103,104480.0,104470.0,0.31711623]
[1748887804389,0.004,104480.0,104470.0,0.31711623]
[1748887804611,0.02314104,104480.0,104470.0,0.31711623]
[1748887804821,0.01357038,104480.0,104470.0,0.31711623]
[1748887805033,0.02314085,104480.0,104470.0,0.31711623]
[1748887805243,0.03271141,104480.0,104470.0,0.31711623]
[1748887805472,0.05185318,104480.0,104470.0,0.27088488]
[1748887805696,0.21058648,104470.0,104460.0,0.33327405]
[1748887805915,0.19144251,104470.0,104460.0,0.00014504]
[1748887806117,0.20784251,104470.0,104460.0,0.00014504]
[1748887806348,0.26116918,104470.0,104460.0,0.00014504]
[1748887806631,0.22084251,104470.0,104460.0,0.00014504]
[1748887807027,0.22084251,104470.0,104460.0,0.00614504]
[1748887807659,0.22184251,104470.0,104460.0,0.01314504]
[1748887807890,0.20884251,104470.0,104460.0,0.01314504]
[1748887808093,0.19244251,104470.0,104460.0,0.20460588]
[1748887808299,0.0201436,104470.0,104460.0,0.27676212]
[1748887808510,0.22115823,104470.0,104460.0,0.29286212]
[1748887808944,0.0297149,104470.0,104460.0,0.31803452]
[1748887809149,0.03928684,104470.0,104460.0,0.31803452]
[1748887810468,0.0297149,104470.0,104460.0,0.31803452]
[1748887811078,0.02014296,104470.0,104460.0,0.31803452]
[1748887811279,0.01770296,104470.0,104460.0,0.31803452]
[1748887811483,0.21056614,104480.0,104470.0,0.22015805]
[1748887811665,0.22013734,104480.0,104470.0,0.27206273]
[1748887811861,0.27425456,104490.0,104470.0,0.30356145]
[1748887812087,0.08284813,104490.0,104480.0,0.22013661]
[1748887812263,0.09699848,104490.0,104480.0,0.25163661]
[1748887812447,0.09699783,104490.0,104480.0,0.30304926]
[1748887812651,0.10656794,104490.0,104480.0,0.30304926]
[1748887812856,0.087428,104490.0,104480.0,0.30304926]
[1748887813062,0.05831676,104490.0,104480.0,0.30304926]
[1748887813260,0.06531676,104490.0,104480.0,0.30404926]
[1748887814344,0.07831667,104490.0,104480.0,0.30504926]
[1748887814534,0.21052825,104500.0,104490.0,0.22011609]
[1748887815644,0.21052825,104500.0,104490.0,0.21054617]
[1748887815856,0.23152825,104500.0,104490.0,0.21254617]
[1748887816280,0.27102799,104500.0,104490.0,0.21254617]
[1748887816489,0.27102799,104500.0,104490.0,0.20297616]
[1748887816711,0.39243624,104500.0,104490.0,0.002]
[1748887816920,0.40543624,104500.0,104490.0,0.002]
[1748887819022,0.39243624,104500.0,104490.0,0.002]
[1748887819848,0.37623624,104500.0,104490.0,0.002]
[1748887820942,0.37623624,104500.0,104480.0,0.20925919]
[1748887820943,0.20097598,104490.0,104480.0,0.20925919]
[1748887821157,0.21054572,104490.0,104480.0,0.19011778]
[1748887821381,0.2009953,104480.0,104470.0,0.26941885]
[1748887821601,0.00957093,104480.0,104470.0,0.25325741]
[1748887821842,0.01914159,104480.0,104470.0,0.26282898]
[1748887822064,0.22970727,104480.0,104470.0,0.2436863]
[1748887822272,0.22970727,104480.0,104470.0,0.26282971]
[1748887822487,0.23927847,104480.0,104470.0,0.26282971]
[1748887822689,0.04785428,104480.0,104470.0,0.27240128]
[1748887822887,0.03828308,104480.0,104470.0,0.27240082]
[1748887823093,0.02871197,104480.0,104470.0,0.25690082]
[1748887823305,0.03828299,104480.0,104470.0,0.25690082]
[1748887823505,0.03828299,104480.0,104470.0,0.27250082]
[1748887823919,0.03828299,104480.0,104470.0,0.27350082]
[1748887824357,0.03828299,104480.0,104470.0,0.36336728]
[1748887824583,0.23927829,104480.0,104470.0,0.36336728]
[1748887824795,0.23927902,104480.0,104470.0,0.27350082]
[1748887825020,0.2105665,104480.0,104470.0,0.002]
[1748887825281,0.38783241,104480.0,104470.0,0.002]
[1748887825497,0.74083241,104480.0,104470.0,0.002]
[1748887825732,0.74083241,104480.0,104460.0,0.00971808]
[1748887825733,0.20101445,104470.0,104460.0,0.00971808]
[1748887825944,0.36278309,104470.0,104460.0,0.00014504]
[1748887827052,0.36278309,104470.0,104460.0,0.01114504]
[1748887827770,0.36278309,104470.0,104460.0,0.21217892]
[1748887828000,0.27651535,104470.0,104460.0,0.26232435]
[1748887828213,0.00957157,104470.0,104460.0,0.32919099]
[1748887828423,0.02871517,104470.0,104460.0,0.32919099]
[1748887829157,0.38326308,104480.0,104470.0,0.22015777]
[1748887829398,0.4346535,104480.0,104470.0,0.25115777]
[1748887829649,0.00957047,104480.0,104470.0,0.25115777]
[1748887829829,0.0287116,104480.0,104470.0,0.25115713]
[1748887830287,0.02871151,104480.0,104470.0,0.25115713]
[1748887830493,0.03828235,104480.0,104470.0,0.25115713]
[1748887830695,0.04785337,104480.0,104470.0,0.25115713]
[1748887831241,0.03828235,104480.0,104470.0,0.25115713]
[1748887831444,0.03828235,104480.0,104470.0,0.32519743]
[1748887831824,0.02871151,104480.0,104470.0,0.32519743]
[1748887832237,0.02871151,104480.0,104470.0,0.25115713]
[1748887832432,0.01914085,104480.0,104470.0,0.25115713]
[1748887833530,0.00957038,104480.0,104470.0,0.25115713]
[1748887833730,0.01914094,104480.0,104470.0,0.25115713]
[1748887833954,0.01914085,104480.0,104470.0,0.25115713]
[1748887835049,0.0287094,104490.0,104480.0,0.2522367]
[1748887835384,0.22968538,104490.0,104480.0,0.2522367]
[1748887835632,0.01913939,104490.0,104480.0,0.2522367]
[1748887835839,0.0382797,104490.0,104480.0,0.2522367]
[1748887836032,0.22968557,104490.0,104480.0,0.24266614]
[1748887836216,0.23868557,104490.0,104480.0,0.25323689]
[1748887836840,0.22911601,104490.0,104480.0,0.2340953]
[1748887837044,0.22254618,104490.0,104480.0,0.25323716]
[1748887837251,0.2885875,104490.0,104480.0,0.25323716]
[1748887837830,0.08761115,104490.0,104480.0,0.27237838]
[1748887838032,0.29815669,104490.0,104480.0,0.30919007]
[1748887838232,0.30772689,104490.0,104480.0,0.25323716]
[1748887838563,0.12589131,104490.0,104480.0,0.27237847]
[1748887838797,0.012,104490.0,104480.0,0.27237847]
[1748887839015,0.012,104490.0,104480.0,0.36823277]
[1748887839293,0.012,104490.0,104480.0,0.66583277]
[1748887839509,0.012,104490.0,104480.0,0.7218003]
[1748887841491,0.012,104490.0,104480.0,0.66583277]
[1748887844136,0.02156946,104490.0,104480.0,0.66583277]
[1748887844483,0.012,104490.0,104480.0,0.66583277]
[1748887845440,0.012,104490.0,104480.0,0.24366632]
[1748887845626,0.04070977,104490.0,104480.0,0.25323689]
[1748887845869,0.24168593,104490.0,104480.0,0.24366623]
[1748887846045,0.24168593,104490.0,104480.0,0.25323707]
[1748887846424,0.24168593,104490.0,104480.0,0.27237838]
[1748887846596,0.24168593,104490.0,104480.0,0.34847647]
[1748887847809,0.24168593,104490.0,104480.0,0.33890591]
[1748887848413,0.22254636,104490.0,104480.0,0.0331]
[1748887848623,0.22254636,104490.0,104480.0,0.2019953]
[1748887848860,0.21297616,104490.0,104480.0,0.19242419]
[1748887849071,0.20099539,104480.0,104470.0,0.19144077]
[1748887849277,0.22013707,104480.0,104470.0,0.22015686]
[1748887849494,0.22013707,104480.0,104460.0,0.23532435]
[1748887849495,0.20101445,104470.0,104460.0,0.23532435]
[1748887849726,0.22015787,104470.0,104460.0,0.26099684]
[1748887849932,0.22015833,104470.0,104460.0,0.25142435]
[1748887850332,0.22015833,104470.0,104460.0,0.24185168]
[1748887850770,0.22115833,104470.0,104460.0,0.26185168]
[1748887851477,0.22115833,104470.0,104460.0,0.27142472]
[1748887851899,0.21158648,104470.0,104460.0,0.24032472]
[1748887852099,0.20201454,104470.0,104460.0,0.23075187]
[1748887852869,0.20201454,104470.0,104460.0,0.02014504]
[1748887853076,0.26490773,104470.0,104460.0,0.02014504]
[1748887853275,0.26490773,104470.0,104460.0,0.21160588]
[1748887853483,0.19244251,104470.0,104460.0,0.02014504]
[1748887853863,0.19244251,104470.0,104460.0,0.22117892]
[1748887854306,0.19244251,104470.0,104460.0,0.23075187]
[1748887854893,0.19244251,104470.0,104460.0,0.22117892]
[1748887855093,0.21158611,104470.0,104460.0,0.23075187]
[1748887855244,0.22115823,104470.0,104460.0,0.24989712]
[1748887855454,0.22115823,104470.0,104460.0,0.23075187]
[1748887855693,0.23908116,104470.0,104460.0,0.24032472]
[1748887855912,0.21158657,104470.0,104460.0,0.24989748]
[1748887856532,0.21158657,104470.0,104460.0,0.02014504]
[1748887856744,0.43733071,104470.0,104460.0,0.02014504]
[1748887857134,0.43733071,104470.0,104460.0,0.23075177]
[1748887857135,0.38185827,104470.0,104460.0,0.23075177]
[1748887857346,0.38185832,104470.0,104460.0,0.24032453]